bitfinex/quotes_SOLUSD_20260125
["timestamp","ask_amount","ask_price","bid_price","bid_amount"]
[1769383465973,4.29741034,119.26,119.23,12.61142582]
[1769383466478,4.29741034,119.27,119.24,6.98136002]
[1769383466680,4.29741034,119.27,119.24,4.22461003]
[1769383467877,4.29741034,119.27,119.24,15.3677191]
[1769383469098,4.29741034,119.27,119.24,2.75674999]
[1769383469802,0.1,119.32,119.27,4.22461003]
[1769383469996,4.39741034,119.32,119.29,2.75674999]
[1769383470504,4.39741034,119.32,119.28,6.98136002]
[1769383470677,4.29741034,119.31,119.27,4.22461003]
[1769383471004,4.29741034,119.27,119.22,8.38746111]
[1769383471176,4.29741034,119.26,119.22,8.38746111]
[1769383471371,4.29741034,119.26,119.22,11.1442111]
[1769383471584,7.05416033,119.26,119.22,8.38746111]
[1769383471799,4.29741034,119.25,119.22,8.38746111]
[1769383472998,4.29741034,119.23,119.18,27.9569591]
[1769383473197,4.12187789,119.22,119.19,8.389908]
[1769383473600,4.12187789,119.22,119.18,10.54762273]
[1769383473791,4.12187789,119.21,119.18,12.61521752]
[1769383475707,4.12187789,119.21,119.18,8.39060749]
[1769383476407,10.44489059,119.19,119.15,18.91885108]
[1769383476592,6.3230127,119.19,119.15,12.59583838]
[1769383476800,4.12187789,119.18,119.15,12.59583838]
[1769383478000,4.12187789,119.18,119.15,4.20365574]
[1769383478193,4.12187789,119.18,119.15,12.59642775]
[1769383479804,4.12187789,119.18,119.14,18.92005861]
[1769383480895,4.12187789,119.17,119.12,4.40365574]
[1769383481098,4.12187789,119.15,119.12,14.91747455]
[1769383481296,4.12187789,119.15,119.12,0.2]
[1769383481499,4.12187789,119.14,119.12,0.2]
[1769383482211,10.44489059,119.13,119.1,8.39621923]
[1769383482507,4.12187789,119.12,119.09,0.2]
[1769383483011,4.12187789,119.11,119.09,0.2]
[1769383484096,10.44489059,119.14,119.09,19.12363429]
[1769383484611,4.12187789,119.13,119.09,19.12363429]
[1769383485109,10.44489059,119.15,119.1,10.52666844]
[1769383485427,4.12187789,119.15,119.11,10.52666844]
[1769383485923,10.44489059,119.15,119.11,10.52666844]
[1769383486415,4.12187789,119.13,119.09,19.12341744]
[1769383486612,4.12187789,119.13,119.1,8.39629604]
[1769383486822,4.12187789,119.13,119.1,14.71930874]
[1769383487113,4.12187789,119.13,119.1,18.92296448]
[1769383487323,4.12187789,119.14,119.11,8.39545901]
[1769383487497,4.12187789,119.14,119.11,12.59911475]
[1769383487814,4.12187789,119.14,119.11,18.92212745]
[1769383488010,4.12187789,119.16,119.11,18.92212745]
[1769383488221,4.12187789,119.15,119.11,18.92212745]
[1769383488390,10.44489059,119.14,119.11,8.39545901]
[1769383488595,4.12187789,119.14,119.11,8.39545901]
[1769383488919,4.12187789,119.14,119.11,14.71847171]
[1769383489606,6.3230127,119.13,119.09,8.59656492]
[1769383489810,4.12187789,119.12,119.09,19.12323336]
[1769383490113,4.12187789,119.12,119.09,4.40365574]
[1769383492214,4.12187789,119.13,119.1,6.3230127]
[1769383492406,4.12187789,119.13,119.09,19.12365755]
[1769383492808,4.12187789,119.13,119.09,14.92000181]
[1769383493012,4.12187789,119.13,119.1,4.20365574]
[1769383493209,4.12187789,119.13,119.09,19.12365755]
[1769383493713,4.12187789,119.13,119.09,19.13315558]
[1769383494104,4.12187789,119.15,119.11,10.53616647]
[1769383495412,4.12187789,119.15,119.11,18.93124623]
[1769383495611,4.12187789,119.15,119.11,15.35594113]
[1769383496106,4.12187789,119.15,119.12,2.75720563]
[1769383496306,4.12187789,119.15,119.12,4.20365574]
[1769383496624,4.12187789,119.15,119.11,11.15228539]
[1769383499226,4.12187789,119.15,119.11,15.35594113]
[1769383500026,4.12187789,119.14,119.11,12.5987355]
[1769383501723,4.12187789,119.14,119.09,4.40365574]
[1769383501724,4.12187789,119.13,119.09,4.40365574]
[1769383501922,4.12187789,119.12,119.09,0.2]
[1769383502227,4.12187789,119.12,119.09,7.16086137]
[1769383502402,4.12187789,119.12,119.1,8.39630554]
[1769383503102,4.12187789,119.12,119.09,7.16086137]
[1769383503730,4.12187789,119.12,119.09,0.2]
[1769383506208,4.13438944,119.14,119.09,15.83819707]
[1769383506430,4.13438944,119.13,119.1,7.24122806]
[1769383506823,4.13438944,119.12,119.09,13.08099144]
[1769383507232,4.13438944,119.12,119.09,15.83819707]
[1769383508729,4.13438944,119.11,119.09,8.59696901]
[1769383508920,4.13438944,119.11,119.09,0.2]
[1769383509122,5.34408856,119.18,119.07,15.639023]
[1769383509123,23.3,119.14,119.07,7.24122806]
[1769383509332,2.75720563,119.13,119.08,11.15443346]
[1769383509832,2.75720563,119.13,119.08,15.63845589]
[1769383511117,4.13438944,119.12,119.09,8.3969436]
[1769383511921,4.13438944,119.11,119.08,8.39739529]
[1769383512913,4.13438944,119.11,119.08,8.3976826]
[1769383513413,4.13438944,119.12,119.08,15.63891066]
[1769383513819,6.89159507,119.12,119.08,12.88170503]
[1769383514110,4.13438944,119.12,119.09,4.48402243]
[1769383514312,4.13438944,119.12,119.09,7.24122806]
[1769383514839,4.13438944,119.11,119.08,8.3976826]
[1769383515317,4.13438944,119.11,119.08,12.88170503]
[1769383515516,4.13438944,119.11,119.08,15.63891066]
[1769383516431,4.25080416,119.12,119.09,7.0773632]
[1769383516636,4.25080416,119.12,119.09,4.32015757]
[1769383516936,7.00800979,119.12,119.09,4.32015757]
[1769383517136,4.25080416,119.12,119.09,4.32015757]
[1769383517637,7.00800979,119.12,119.09,12.71714275]
[1769383517838,4.25080416,119.12,119.09,12.71714275]
[1769383520541,4.25080416,119.13,119.1,4.32015757]
[1769383520721,4.25080416,119.11,119.09,8.39698518]
[1769383521536,4.25080416,119.11,119.08,12.71775836]
[1769383522625,4.25080416,119.11,119.08,8.39760079]
[1769383523243,4.25080416,119.11,119.06,8.59899199]
[1769383523452,7.00800979,119.09,119.06,4.52015757]
[1769383523750,7.00800979,119.08,119.06,0.2]
[1769383525717,4.25080416,119.07,119.05,0.2]
[1769383527918,4.25080416,119.08,119.05,4.52015757]
[1769383528545,7.00800979,119.08,119.05,4.52015757]
[1769383529242,7.00800979,119.08,119.05,0.2]
[1769383529433,4.25080416,119.08,119.05,4.52015757]
[1769383529944,7.00800979,119.08,119.05,0.2]
[1769383531943,2.75720563,119.08,119.05,0.2]
[1769383532142,4.25080416,119.07,119.05,0.2]
[1769383532456,2.75720563,119.08,119.02,12.9219461]
[1769383532457,7.00800979,119.06,119.02,12.9219461]
[1769383533021,7.00800979,119.06,119.03,4.16468147]
[1769383533245,4.23950894,119.1,119.05,4.16468147]
[1769383533454,6.99671457,119.09,119.05,4.16468147]
[1769383533633,4.23950894,119.08,119.05,4.16468147]
[1769383533837,6.99671457,119.08,119.05,4.16468147]
[1769383537853,6.99671457,119.09,119.05,4.16468147]
[1769383538359,4.23950894,119.08,119.05,4.16468147]
[1769383539040,4.23950894,119.08,119.05,6.9218871]
[1769383539251,4.23950894,119.08,119.05,4.16468147]
[1769383542466,6.99671457,119.08,119.05,4.16468147]
[1769383542761,4.23950894,119.08,119.05,4.16468147]
[1769383543260,6.99671457,119.07,119.03,12.56560892]
[1769383543461,4.23950894,119.07,119.04,4.16468147]
[1769383543767,6.99671457,119.08,119.04,4.16468147]
[1769383544853,2.75720563,119.07,119.04,4.16468147]
[1769383545058,4.23950894,119.05,119.02,4.36468147]
[1769383545244,6.99671457,119.06,119.03,4.16468147]
[1769383546549,4.23950894,119.06,119.03,4.16468147]
[1769383546751,6.99671457,119.06,119.03,4.16468147]
[1769383546967,4.23950894,119.06,119.03,4.16468147]
[1769383555170,2.76142911,119.07,119.04,4.16468147]
[1769383555347,2.76142911,119.08,119.04,4.16468147]
[1769383555771,7.00093805,119.08,119.04,4.16468147]
[1769383556576,7.00093805,119.08,119.04,12.56521582]
[1769383556758,4.23950894,119.08,119.04,15.32664493]
[1769383557272,4.23950894,119.09,119.06,4.16468147]
[1769383557567,4.23950894,119.09,119.05,6.92611058]
[1769383557774,7.00093805,119.09,119.05,4.16468147]
[1769383557961,4.23950894,119.08,119.05,4.16468147]
[1769383558472,4.23950894,119.06,119.03,4.16468147]
[1769383558770,4.23950894,119.06,119.03,12.56587636]
[1769383558977,4.23950894,119.06,119.03,4.16468147]
[1769383559351,4.23950894,119.06,119.03,12.56591348]
[1769383559676,7.00093805,119.08,119.04,4.16468147]
[1769383559848,2.76142911,119.08,119.04,4.16468147]
[1769383560172,4.23950894,119.07,119.04,4.16468147]
[1769383560667,2.76142911,119.09,119.05,4.16468147]
[1769383560868,4.23950894,119.1,119.06,6.92611058]
[1769383561172,4.23950894,119.1,119.06,4.16468147]
[1769383561173,4.23950894,119.09,119.06,4.16468147]
[1769383561362,7.00093805,119.08,119.04,4.16468147]
[1769383561672,4.23950894,119.06,119.03,12.56547761]
[1769383562566,7.00093805,119.07,119.03,4.16468147]
[1769383564081,12.54282647,119.08,119.03,4.16468147]
[1769383564251,4.14493832,119.07,119.04,4.2966839]
[1769383564446,6.90636743,119.07,119.03,4.2966839]
[1769383564751,6.90636743,119.06,119.03,4.2966839]
[1769383565491,6.90636743,119.05,119.02,4.4966839]
[1769383565777,4.14493832,119.04,119.02,0.2]
[1769383566273,6.90636743,119.05,119.02,0.2]
[1769383566860,6.90636743,119.05,119.02,4.4966839]
[1769383573077,4.14493832,119.05,119.02,12.89861023]
[1769383574468,4.14493832,119.05,119.02,4.4966839]
[1769383575567,4.14493832,119.05,119.02,0.2]
[1769383575767,4.14493832,119.05,119.02,4.68224925]
[1769383576465,7.07401218,119.06,119.03,4.48224925]
[1769383577487,4.31258307,119.05,119.02,13.0841886]
[1769383578374,7.07401218,119.06,119.03,4.48224925]
[1769383579485,2.76142911,119.06,119.03,4.48224925]
[1769383579784,4.31258307,119.05,119.03,4.48224925]
[1769383580290,4.31258307,119.05,119.02,13.0841886]
[1769383580514,7.07401218,119.05,119.02,4.68224925]
[1769383580686,4.31258307,119.05,119.02,4.68224925]
[1769383581797,7.07401218,119.06,119.03,4.48224925]
[1769383582768,4.31258307,119.1,119.05,4.48224925]
[1769383582970,4.31258307,119.09,119.06,4.48224925]
[1769383583168,7.07401218,119.09,119.03,8.40109595]
[1769383583389,4.31258307,119.09,119.05,2.76142911]
[1769383584472,4.31258307,119.09,119.05,11.16117237]
[1769383585086,4.31258307,119.09,119.06,4.48224925]
[1769383586380,4.31258307,119.09,119.06,7.24367836]
[1769383586997,4.31258307,119.09,119.06,15.64272531]
[1769383590406,4.31258307,119.1,119.07,7.24367836]
[1769383591277,4.31258307,119.1,119.07,4.48224925]
[1769383592397,4.31258307,119.1,119.06,15.64272531]
[1769383593082,4.31258307,119.1,119.07,8.39828813]
[1769383595103,4.31258307,119.1,119.07,12.50082611]
[1769383600399,4.23090054,119.11,119.08,2.76142911]
[1769383600715,4.23090054,119.12,119.1,4.10253798]
[1769383602390,4.23090054,119.15,119.11,15.25933734]
[1769383603918,6.99232965,119.15,119.11,4.10253798]
[1769383604218,4.23090054,119.14,119.11,4.10253798]
[1769383605015,4.23090054,119.14,119.11,12.49808915]
[1769383605614,4.23090054,119.14,119.11,4.10253798]
[1769383607623,4.23090054,119.13,119.1,4.10253798]
[1769383607920,4.23090054,119.13,119.1,12.49878215]
[1769383610127,4.23090054,119.14,119.11,4.10253798]
[1769383612028,4.23090054,119.13,119.11,4.10253798]
[1769383614436,4.23090054,119.14,119.11,4.10253798]
[1769383614731,4.23090054,119.14,119.1,4.10253798]
[1769383614732,4.23090054,119.13,119.1,4.10253798]
[1769383615112,4.23090054,119.13,119.11,4.10253798]
[1769383617135,4.23090054,119.14,119.11,12.49796163]
[1769383617331,4.23090054,119.14,119.11,15.25579456]
[1769383618419,4.23090054,119.14,119.11,12.49796163]
[1769383620839,4.23090054,119.13,119.1,4.10253798]
[1769383622035,4.23090054,119.13,119.11,4.10253798]
[1769383622220,4.23090054,119.14,119.12,4.10253798]
[1769383622628,4.23090054,119.16,119.12,4.10253798]
[1769383622841,4.23090054,119.15,119.12,4.10253798]
[1769383623333,4.23090054,119.15,119.11,11.15339132]
[1769383623525,4.23090054,119.15,119.11,15.55022169]
[1769383624342,4.23090054,119.15,119.12,4.39683037]
[1769383624544,4.23090054,119.15,119.12,12.79156205]
[1769383629047,4.23090054,119.15,119.12,4.39683037]
[1769383631461,4.23090054,119.15,119.12,12.79168907]
[1769383632556,4.23090054,119.15,119.12,4.39683037]
[1769383634450,4.23090054,119.15,119.12,12.79164252]
[1769383634653,4.23090054,119.15,119.12,4.39683037]
[1769383637736,12.62377753,119.15,119.08,8.39758387]
[1769383638072,4.34069677,119.11,119.08,12.73375916]
[1769383638260,4.34069677,119.11,119.08,15.49159209]
[1769383638760,4.34069677,119.11,119.09,4.33656925]
[1769383638961,4.34069677,119.12,119.09,7.09440218]
[1769383639258,4.34069677,119.13,119.1,4.33656925]
[1769383641643,4.34069677,119.15,119.13,4.33656925]
[1769383641963,0.1,119.18,119.13,7.09440218]
[1769383641964,4.34069677,119.16,119.13,7.09440218]
[1769383642470,4.34069677,119.14,119.1,4.33656925]
[1769383642671,4.34069677,119.13,119.1,4.33656925]
[1769383645591,4.34069677,119.13,119.08,12.7340305]
[1769383645592,4.34069677,119.11,119.08,12.7340305]
[1769383645950,4.34069677,119.11,119.09,4.33656925]
[1769383646384,4.34069677,119.12,119.09,4.33656925]
[1769383646943,4.34069677,119.12,119.08,12.7340305]
[1769383647376,4.34069677,119.11,119.08,4.33656925]
[1769383650648,4.34069677,119.1,119.07,4.33656925]
[1769383655379,4.3067698,119.11,119.08,4.08700957]
[1769383655769,4.3067698,119.11,119.07,12.48540216]
[1769383656157,4.3067698,119.11,119.08,4.08700957]
[1769383656782,4.3067698,119.11,119.07,8.39839259]
[1769383657077,4.3067698,119.08,119.04,15.24512324]
[1769383657860,4.3067698,119.08,119.04,12.48729031]
[1769383658255,4.3067698,119.08,119.05,4.08700957]
[1769383660666,4.3067698,119.08,119.05,12.48678968]
[1769383660993,4.3067698,119.08,119.05,4.08700957]
[1769383666096,4.3067698,119.08,119.05,12.4868323]
[1769383667575,4.3067698,119.08,119.05,4.08700957]
[1769383668591,4.3067698,119.08,119.05,12.48676986]
[1769383671094,4.3067698,119.08,119.05,4.08700957]
[1769383672291,4.3067698,119.07,119.03,38.5457528]
[1769383672591,4.3067698,119.07,119.03,12.48791987]
[1769383672778,7.06460273,119.07,119.03,4.08700957]
[1769383673090,4.3067698,119.05,119.02,12.68868417]
[1769383674763,4.3067698,119.05,119.03,4.08700957]
[1769383678890,4.3067698,119.05,119.02,12.68868417]
[1769383680696,4.3067698,119.05,119.02,4.28700957]
[1769383681993,4.3067698,119.03,119.02,0.2]
[1769383684890,4.09551513,119.02,119.0,0.2]
[1769383686693,4.09551513,119.01,119.0,0.2]
[1769383687080,4.09551513,119.0,118.97,12.69491861]
[1769383687280,4.09551513,119.0,118.97,4.28974551]
[1769383687683,4.09551513,119.0,118.98,4.08974551]
[1769383687901,4.09551513,119.01,118.98,4.08974551]
[1769383689205,6.85723911,119.03,118.99,4.08974551]
[1769383689502,4.09551513,119.02,118.99,4.08974551]
[1769383689913,4.09551513,119.03,119.0,4.08974551]
[1769383690079,4.09551513,119.04,119.01,4.08974551]
[1769383690281,4.09551513,119.04,119.01,6.85146949]
[1769383691235,4.09551513,119.07,119.03,6.85146949]
[1769383693588,4.09551513,119.09,119.06,4.08974551]
[1769383693784,4.09551513,119.09,119.06,6.85146949]
[1769383694107,4.09551513,119.1,119.06,6.85146949]
[1769383694479,4.09551513,119.09,119.06,4.08974551]
[1769383695301,4.09551513,119.09,119.05,6.85146949]
[1769383695507,2.76172398,119.09,119.05,4.08974551]
[1769383695716,4.09551513,119.09,119.05,4.08974551]
[1769383696720,4.09551513,119.09,119.05,6.85146949]
[1769383698217,4.47198585,119.07,119.03,15.57673929]
[1769383698905,4.47198585,119.05,119.02,4.41420134]
[1769383700188,4.47198585,119.06,119.03,4.41420134]
[1769383700385,4.47198585,119.07,119.03,4.41420134]
[1769383702099,7.23370983,119.07,119.03,4.41420134]
[1769383702306,2.76172398,119.07,119.03,4.41420134]
[1769383702520,4.47198585,119.06,119.03,4.41420134]
[1769383703402,4.47198585,119.06,119.03,12.81539496]
[1769383706412,4.47198585,119.06,119.03,15.57711894]
[1769383706721,4.47198585,119.07,119.04,4.41420134]
[1769383707707,4.47198585,119.07,119.03,12.81539496]
[1769383708015,2.76172398,119.08,119.02,12.81613151]
[1769383708016,4.47198585,119.05,119.02,12.81613151]
[1769383708212,4.47198585,119.05,119.02,4.41420134]
[1769383709215,4.47198585,119.06,119.03,4.41420134]
[1769383710212,4.47198585,119.06,119.02,15.5778729]
[1769383711114,4.47198585,119.06,119.02,12.81614892]
[1769383711514,4.47198585,119.07,119.04,4.41420134]
[1769383711710,4.47198585,119.06,119.03,4.41420134]
[1769383711916,4.47198585,119.05,119.02,12.81614892]
[1769383712314,4.47198585,119.04,119.01,12.81679818]
[1769383712506,4.47198585,119.04,119.0,2.76172398]
[1769383712507,4.47198585,119.03,119.0,12.8173334]
[1769383713814,4.42102699,119.02,118.99,12.49964682]
[1769383714118,4.42102699,119.02,118.99,4.09561701]
[1769383715018,4.42102699,119.02,118.99,12.49957629]
[1769383716331,4.42102699,119.04,119.0,4.09561701]
[1769383716507,7.18275097,119.04,119.0,4.09561701]
[1769383716829,4.42102699,119.03,119.0,4.09561701]
[1769383717426,4.42102699,119.03,119.0,12.4988889]
[1769383719127,4.42102699,119.05,119.01,4.09561701]
[1769383719431,4.42102699,119.04,119.0,15.26061288]
[1769383719615,4.42102699,119.03,119.0,12.4988889]
[1769383721852,4.42102699,119.03,119.0,15.26061288]
[1769383722134,4.42102699,119.03,119.0,12.4988889]
[1769383723524,4.42102699,119.03,119.0,4.09561701]
[1769383725114,4.42102699,119.03,119.0,8.4033463]
[1769383726232,4.42102699,119.03,119.0,15.26068729]
[1769383726840,7.1385407,119.02,118.97,2.96172398]
[1769383727129,7.1385407,119.02,118.98,4.09561701]
[1769383727329,4.37681672,119.02,118.99,4.09561701]
[1769383729532,4.37681672,119.03,119.0,4.09561701]
[1769383731227,4.37681672,119.05,119.02,4.09561701]
[1769383732129,4.37681672,119.05,119.01,6.85734099]
[1769383733311,2.76172398,119.06,119.02,4.09561701]
[1769383733524,4.37681672,119.05,119.02,4.09561701]
[1769383748053,4.37681672,119.05,119.02,6.85780721]
[1769383751654,2.7621902,119.08,119.04,4.1371576]
[1769383752152,4.13627844,119.07,119.04,4.1371576]
[1769383754854,6.89846864,119.08,119.05,4.1371576]
[1769383755055,4.13627844,119.07,119.05,4.1371576]
[1769383755352,4.13627844,119.07,119.04,6.8993478]
[1769383756855,4.13627844,119.07,119.05,4.24423602]
[1769383757046,4.37162853,119.09,119.05,7.00642622]
[1769383758056,4.37162853,119.09,119.06,4.24423602]
[1769383758239,4.37162853,119.09,119.05,7.00642622]
[1769383758551,4.37162853,119.08,119.05,4.24423602]
[1769383758740,7.13381873,119.09,119.05,4.24423602]
[1769383758941,7.13381873,119.08,119.05,4.24423602]
[1769383761048,4.37162853,119.08,119.05,4.24423602]
[1769383761436,7.13381873,119.08,119.05,4.24423602]
[1769383764950,4.37162853,119.08,119.05,4.24423602]
[1769383768461,7.13381873,119.09,119.06,4.24423602]
[1769383771670,18.11155601,119.11,119.06,4.24423602]
[1769383771848,4.37162853,119.1,119.08,4.24423602]
[1769383778169,2.7621902,119.1,119.06,2.7621902]
[1769383778346,7.13900692,119.09,119.06,4.44578386]
[1769383778548,4.37681672,119.09,119.06,4.44578386]
[1769383780182,7.13900692,119.1,119.06,4.44578386]
[1769383780470,15.5357992,119.1,119.06,4.44578386]
[1769383780665,7.13900692,119.1,119.06,4.44578386]
[1769383781359,4.37681672,119.09,119.06,4.44578386]
[1769383782768,7.13900692,119.1,119.06,4.44578386]
[1769383783868,15.53592289,119.1,119.06,4.44578386]
[1769383784060,4.37681672,119.09,119.06,4.44578386]
[1769383786847,12.77404916,119.09,119.06,4.44578386]
[1769383787052,4.37681672,119.09,119.06,4.44578386]
[1769383787666,7.13900692,119.09,119.06,4.44578386]
[1769383790271,7.13900692,119.08,119.06,4.44578386]
[1769383790657,4.46056315,119.06,119.02,2.7621902]
[1769383790858,7.22275335,119.06,119.02,8.4015565]
[1769383792573,7.22275335,119.06,119.03,4.44578386]
[1769383798784,4.46056315,119.06,119.03,4.44578386]
[1769383798957,7.22275335,119.06,119.03,4.44578386]
[1769383799577,7.22235984,119.06,119.03,4.44578386]
[1769383800558,4.46056315,119.06,119.03,4.44578386]
[1769383800758,4.46056315,119.06,119.03,12.84699772]
[1769383801078,49.63438569,119.11,119.06,4.44578386]
[1769383801079,2.76179669,119.11,119.06,4.44578386]
[1769383801276,7.22235984,119.12,119.08,4.44578386]
[1769383801457,7.22235984,119.11,119.08,4.44578386]
[1769383801664,2.76179669,119.1,119.08,4.44578386]
[1769383801859,7.22235984,119.11,119.08,4.44578386]
[1769383802060,4.46056315,119.1,119.07,4.44578386]
[1769383802278,4.46056315,119.09,119.06,4.44578386]
[1769383802473,7.22235984,119.09,119.06,4.44578386]
[1769383802679,2.76179669,119.08,119.06,4.44578386]
[1769383803267,7.11921402,119.08,119.06,4.44578386]
[1769383803578,7.11921402,119.09,119.06,4.44578386]
[1769383803789,4.35741733,119.08,119.06,4.44578386]
[1769383804465,4.35741733,119.08,119.05,4.10634416]
[1769383806989,7.11921402,119.06,119.04,4.10634416]
[1769383807576,4.35741733,119.06,119.04,4.10634416]
[1769383808589,4.35741733,119.1,119.06,4.10634416]
[1769383808763,7.11921402,119.09,119.06,4.10634416]
[1769383809384,2.76179669,119.1,119.06,4.10634416]
[1769383809575,4.35741733,119.1,119.07,4.10634416]
[1769383809771,2.76179669,119.09,119.05,4.10634416]
[1769383809977,7.11921402,119.07,119.03,4.10634416]
[1769383810196,7.11921402,119.07,119.04,4.10634416]
[1769383812282,4.35741733,119.07,119.04,4.10634416]
[1769383812595,4.35741733,119.07,119.05,4.10634416]
[1769383814494,4.35741733,119.07,119.04,2.76179669]
[1769383814495,4.35741733,119.07,119.04,4.10634416]
[1769383814698,4.35741733,119.05,119.02,4.10634416]
[1769383817697,7.24217621,119.06,119.02,4.10634416]
[1769383818486,4.48037952,119.05,119.02,4.10634416]
[1769383819808,4.48037952,119.03,119.0,12.487695]
[1769383819983,7.24217621,119.03,119.0,12.487695]
[1769383820185,7.24217621,119.03,119.0,4.08451215]
[1769383820407,4.48037952,119.03,119.01,4.08451215]
[1769383820584,4.48037952,119.03,119.0,11.16513134]
[1769383820585,4.48037952,119.03,119.0,4.08451215]
[1769383820895,7.24217621,119.02,118.99,4.08451215]
[1769383821804,4.48037952,119.02,118.99,4.08451215]
[1769383822000,7.24217621,119.02,118.99,4.08451215]
[1769383822780,4.48037952,119.02,118.99,4.08451215]
[1769383822984,7.24217621,119.03,118.99,4.08451215]
[1769383823593,4.48037952,119.02,118.99,4.08451215]
[1769383825882,7.24217621,119.02,118.98,6.84630884]
[1769383826102,4.48037952,119.01,118.98,6.84630884]
[1769383826303,4.48037952,119.01,118.98,15.25107506]
[1769383826498,4.48037952,119.01,118.99,4.08451215]
[1769383827308,7.24217621,119.02,118.99,4.08451215]
[1769383828121,8.40084867,119.04,119.0,4.08451215]
[1769383828122,4.48037952,119.03,119.0,4.08451215]
[1769383831406,4.48037952,119.04,119.01,4.08451215]
[1769383832109,2.76179669,119.05,119.0,4.08451215]
[1769383832110,7.24217621,119.03,119.0,4.08451215]
[1769383832290,4.48037952,119.03,119.0,4.08451215]
[1769383834808,4.23042455,119.02,118.99,6.87747587]
[1769383835026,6.99222124,119.03,119.0,4.11567918]
[1769383835509,4.23042455,119.02,119.0,4.11567918]
[1769383838911,4.23042455,119.02,118.99,4.11567918]
[1769383839212,6.99222124,119.04,119.01,4.11567918]
[1769383843115,4.23042455,119.03,119.01,4.11567918]
[1769383846932,4.23042455,119.03,118.99,11.16553588]
[1769383847228,4.23042455,119.03,119.01,4.11567918]
[1769383848501,6.99222124,119.04,119.01,4.11567918]
[1769383850528,4.23042455,119.03,119.01,4.11567918]
[1769383851031,4.23042455,119.03,119.0,4.11567918]
[1769383851238,4.23042455,119.02,118.99,4.11567918]
[1769383852028,4.23042455,119.01,118.98,4.11567918]
[1769383852200,6.99222124,119.02,118.99,4.11567918]
[1769383852401,4.23042455,119.02,118.99,4.11567918]
[1769383857823,4.23042455,119.02,119.0,4.11567918]
[1769383860428,6.99222124,119.03,119.0,4.11567918]
[1769383860834,4.23042455,119.03,119.0,4.11567918]
[1769383862028,4.23042455,119.02,119.0,4.11567918]
[1769383863231,4.05651611,119.03,119.0,4.11567918]
[1769383863421,4.05651611,119.02,119.0,4.11567918]
[1769383864118,4.05651611,119.02,118.99,4.03173369]
[1769383864304,6.81967983,119.02,118.99,4.03173369]
[1769383864733,4.05651611,119.01,118.99,4.03173369]
[1769383868308,6.81967983,119.02,118.99,4.03173369]
[1769383869025,4.05651611,119.02,118.99,4.03173369]
[1769383869219,4.05651611,119.02,118.99,12.4356919]
[1769383869542,4.05651611,119.02,119.0,4.03173369]
[1769383869835,2.76316372,119.03,119.0,4.03173369]
[1769383870133,4.05651611,119.05,119.02,4.03173369]
[1769383870330,4.05651611,119.05,119.0,4.03173369]
[1769383870331,4.05651611,119.03,119.0,4.03173369]
[1769383870730,6.81967983,119.04,119.01,4.03173369]
[1769383871038,6.81967983,119.03,119.0,4.03173369]
[1769383876747,3.93701777,119.02,118.99,3.87282542]
[1769383876916,3.93701777,119.01,118.98,3.87282542]
[1769383877254,2.76316372,119.0,118.98,3.87282542]
[1769383877439,6.70018149,119.0,118.98,3.87282542]
[1769383879343,6.70018149,119.01,118.98,3.87282542]
[1769383888063,2.76316372,119.01,118.98,3.87282542]
[1769383890154,6.70018149,119.01,118.98,3.87282542]
[1769383891462,3.93701777,119.0,118.98,3.87282542]
[1769383891760,6.70018149,119.01,118.98,3.87282542]
[1769383891966,3.93701777,119.0,118.98,3.87282542]
[1769383892543,6.70018149,119.01,118.98,3.87282542]
[1769383893765,3.73142449,119.06,119.01,3.83866924]
[1769383894071,3.73142449,119.06,119.0,2.76316372]
[1769383894072,3.73142449,119.06,119.03,3.83866924]
[1769383894241,6.49458821,119.06,119.03,3.83866924]
[1769383894451,3.73142449,119.05,119.03,3.83866924]
[1769383895045,3.73142449,119.05,119.02,6.60183296]
[1769383896567,6.49458821,119.06,119.03,3.83866924]
[1769383896769,2.76316372,119.06,119.03,3.83866924]
[1769383896952,3.73142449,119.05,119.03,3.83866924]
[1769383905382,3.73142449,119.05,119.02,3.83866924]
[1769383905767,3.73142449,119.04,118.99,123.60940271]
[1769383905970,41.97959768,119.11,119.0,3.83866924]
[1769383905971,3.73142449,119.02,119.0,3.83866924]
[1769383906678,6.49458821,119.02,118.99,3.83866924]
[1769383906977,3.73142449,119.01,118.99,3.83866924]
[1769383907296,6.49458821,119.01,118.99,3.83866924]
[1769383907587,8.40108018,119.04,118.97,102.8]
[1769383907588,3.73142449,119.0,118.97,102.8]
[1769383907885,3.73142449,119.01,118.98,3.83866924]
[1769383908660,6.49458821,119.01,118.98,3.83866924]
[1769383910489,6.49458821,119.0,118.97,4.03866924]
[1769383911286,2.76316372,119.0,118.97,4.03866924]
[1769383913095,3.73142449,119.01,118.98,3.83866924]
[1769383913588,6.49458821,119.01,118.98,3.83866924]
[1769383914198,8.40230055,119.02,118.98,3.83866924]
[1769383914199,6.49458821,119.02,118.98,3.83866924]
[1769383915181,2.76316372,119.02,118.98,3.83866924]
[1769383915384,3.73142449,118.99,118.97,0.2]
[1769383915583,2.76316372,119.0,118.97,4.03866924]
[1769383915775,6.49458821,119.0,118.97,4.03866924]
[1769383918684,3.73142449,119.0,118.97,4.03866924]